fUST/lending_fUST_20251222
["ID","MTS","AMOUNT","RATE_DAILY","PERIOD"]
[399447618,1766362740070,-400.0,7.189e-05,2]
[399447619,1766362740154,-500.0,7.189e-05,2]
[399447620,1766362740235,-500.0,7.189e-05,2]
[399447621,1766362740321,-500.0,7.189e-05,2]
[399447622,1766362740401,-486.4540764,7.189e-05,2]
[399447623,1766362740910,-13.5459236,7.189e-05,2]
[399447624,1766362741000,-500.0,7.189e-05,2]
[399447625,1766362741095,-500.0,7.189e-05,2]
[399447626,1766362741170,-500.0,7.189e-05,2]
[399447627,1766362741244,-500.0,7.189e-05,2]
[399447628,1766362741332,-500.0,7.189e-05,2]
[399447629,1766362741421,-500.0,7.189e-05,2]
[399447630,1766362741491,-500.0,7.189e-05,2]
[399447631,1766362741563,-500.0,7.189e-05,2]
[399447632,1766362741629,-500.0,7.189e-05,2]
[399447633,1766362741698,-472.9181528,7.189e-05,2]
[399447634,1766362742077,-27.0818472,7.189e-05,2]
[399447635,1766362742148,-500.0,7.189e-05,2]
[399447636,1766362742224,-500.0,7.189e-05,2]
[399447637,1766362742297,-500.0,7.189e-05,2]
[399447638,1766362742366,-500.0,7.189e-05,2]
[399447639,1766362742437,-500.0,7.189e-05,2]
[399447640,1766362742522,-500.0,7.189e-05,2]
[399447641,1766362742598,-500.0,7.189e-05,2]
[399447642,1766362742672,-500.0,7.189e-05,2]
[399447643,1766362742746,-500.0,7.189e-05,2]
[399447644,1766362742827,-445.8463056,7.189e-05,2]
[399447645,1766362743243,-54.1536944,7.189e-05,2]
[399447646,1766362743335,-231.86136561,7.189e-05,2]
[399447647,1766362743424,-500.0,7.189e-05,2]
[399447648,1766362743507,-500.0,7.189e-05,2]
[399447649,1766362743588,-500.0,7.189e-05,2]
[399447650,1766362743665,-617.34431234,7.189e-05,2]
[399447651,1766362743748,-500.0,7.189e-05,2]
[399447652,1766362743847,-500.0,7.189e-05,2]
[399447653,1766362743939,-500.0,7.189e-05,2]
[399447654,1766362744029,-500.0,7.189e-05,2]
[399447655,1766362744123,-500.0,7.189e-05,2]
[399447656,1766362744753,-500.0,7.189e-05,2]
[399447657,1766362744834,-500.0,7.189e-05,2]
[399447658,1766362744918,-500.0,7.189e-05,2]
[399447659,1766362745005,-500.0,7.189e-05,2]
[399447660,1766362745088,-500.0,7.189e-05,2]
[399447661,1766362745160,-500.0,7.189e-05,2]
[399447662,1766362745241,-500.0,7.189e-05,2]
[399447663,1766362745325,-500.0,7.189e-05,2]
[399447664,1766362745403,-500.0,7.189e-05,2]
[399447665,1766362745478,-500.0,7.189e-05,2]
[399447666,1766362746122,-500.0,7.189e-05,2]
[399447667,1766362746200,-500.0,7.189e-05,2]
[399447668,1766362746283,-500.0,7.189e-05,2]
[399447669,1766362746359,-500.0,7.189e-05,2]
[399447670,1766362746438,-500.0,7.189e-05,2]
[399447671,1766362746512,-500.0,7.189e-05,2]
[399447672,1766362746589,-500.0,7.189e-05,2]
[399447673,1766362746667,-500.0,7.189e-05,2]
[399447674,1766362746744,-500.0,7.189e-05,2]
[399447675,1766362746821,-500.0,7.189e-05,2]
[399447676,1766362747149,-500.0,7.189e-05,2]
[399447677,1766362747227,-500.0,7.189e-05,2]
[399447678,1766362747305,-500.0,7.189e-05,2]
[399447679,1766362747383,-500.0,7.189e-05,2]
[399447680,1766362747459,-500.0,7.189e-05,2]
[399447681,1766362747536,-500.0,7.189e-05,2]
[399447682,1766362747610,-500.0,7.189e-05,2]
[399447683,1766362747686,-500.0,7.189e-05,2]
[399447684,1766362747763,-500.0,7.189e-05,2]
[399447685,1766362747850,-500.0,7.189e-05,2]
[399447686,1766362748314,-500.0,7.189e-05,2]
[399447687,1766362748402,-500.0,7.189e-05,2]
[399447688,1766362748485,-500.0,7.189e-05,2]
[399447689,1766362748564,-500.0,7.189e-05,2]
[399447690,1766362748909,-500.0,7.189e-05,2]
[399447691,1766362748993,-500.0,7.189e-05,2]
[399447692,1766362749078,-500.0,7.189e-05,2]
[399447693,1766362749158,-500.0,7.189e-05,2]
[399447694,1766362749239,-500.0,7.189e-05,2]
[399447695,1766362749323,-500.0,7.189e-05,2]
[399447696,1766362767181,-5000.0,7.117e-05,2]
[399447697,1766362767424,-500.0,7.189e-05,2]
[399447698,1766362767501,-500.0,7.189e-05,2]
[399447699,1766362767576,-190.8160347,7.189e-05,2]
[399447700,1766362767659,-500.0,7.189e-05,2]
[399447701,1766362767745,-442.15333439,7.189e-05,2]
[399447702,1766362767833,-500.0,7.189e-05,2]
[399447703,1766362767919,-500.0,7.189e-05,2]
[399447704,1766362768004,-500.0,7.189e-05,2]
[399447705,1766362768090,-500.0,7.189e-05,2]
[399447706,1766362768175,-500.0,7.189e-05,2]
[399447707,1766362768263,-234.07126182,7.189e-05,2]
[399447708,1766362772547,-265.92873818,7.189e-05,2]
[399447709,1766362772622,-500.0,7.189e-05,2]
[399447710,1766362780715,5000.0,7.189e-05,2]
[399447711,1766362781363,263.41344117,7.189e-05,2]
[399447712,1766362796609,3204.73908247,7.189e-05,2]
[399447713,1766362798932,-1795.26091753,7.189e-05,2]
[399447714,1766362799011,-1200.0,7.189e-05,2]
[399447715,1766362805649,4009.48816494,7.189e-05,2]
[399447716,1766362805743,990.51183506,7.189e-05,2]
[399447717,1766362811729,11012.0,0.000328,60]
[399447718,1766362819096,-522.0,7.19e-05,2]
[399447719,1766362822634,1409.64492369,7.19e-05,2]
[399447720,1766362829717,5000.0,7.19e-05,2]
[399447721,1766362851462,-500.0,7.192e-05,2]
[399447722,1766362851552,-178.53088465,7.192e-05,2]
[399447723,1766362851636,-500.0,7.192e-05,2]
[399447724,1766362851728,-500.0,7.192e-05,2]
[399447725,1766362851821,-500.0,7.192e-05,2]
[399447726,1766362851914,-480.8160347,7.192e-05,2]
[399447727,1766362852010,-500.0,7.192e-05,2]
[399447728,1766362852122,-581.31792951,7.192e-05,2]
[399447729,1766362852259,-500.0,7.192e-05,2]
[399447730,1766362852383,-500.0,7.192e-05,2]
[399447731,1766362852511,-227.78792615,7.192e-05,2]
[399447732,1766362852991,-500.0,7.192e-05,2]
[399447733,1766362853086,-300.0,7.192e-05,2]
[399447734,1766362853182,-300.0,7.192e-05,2]
[399447735,1766362853267,-300.0,7.192e-05,2]
[399447736,1766362853360,-1200.0,7.192e-05,2]
[399447737,1766362855689,4800.01,7.19e-05,2]
[399447738,1766362855771,199.99,7.19e-05,2]
[399447739,1766362876682,5000.0,7.192e-05,2]
[399447740,1766362883454,-1162.66306253,7.193e-05,2]
[399447741,1766362883763,-2325.32612506,7.193e-05,2]
[399447742,1766362884111,-4650.65225012,7.193e-05,2]
[399447743,1766362884692,-698.70549976,7.193e-05,2]
[399447745,1766362907803,-5000.0,7.357e-05,2]
[399447746,1766362908169,-600.0,7.431e-05,2]
[399447747,1766362922201,5000.0,7.431e-05,2]
[399447758,1766362945228,5000.0,7.493e-05,2]
[399447759,1766362949862,5000.01,7.09e-05,2]
[399447760,1766362949959,10000.01,7.09e-05,2]
[399447761,1766362950054,10000.01,7.09e-05,2]
[399447762,1766362950150,10000.01,7.09e-05,2]
[399447763,1766362950247,10000.01,7.09e-05,2]
[399447764,1766362950341,10000.01,7.09e-05,2]
[399447765,1766362950430,10000.01,7.09e-05,2]
[399447766,1766362950517,10000.01,7.09e-05,2]
[399447767,1766362950602,10000.01,7.09e-05,2]
[399447768,1766362983442,-755.71404838,7.019e-05,2]
[399447769,1766362985428,-267.73366305,7.019e-05,2]
[399447770,1766362987577,-276.36947537,7.019e-05,2]
[399447771,1766362991602,-3700.1828132,7.019e-05,2]
[399447773,1766363014510,2599.6443736,7.019e-05,2]
[399447774,1766363017046,-2400.3556264,7.019e-05,2]
[399447775,1766363017139,-300.0,7.089e-05,2]
[399447776,1766363038680,5000.0,7.089e-05,2]
[399447777,1766363062872,5000.0,7.09e-05,2]
[399447778,1766363085885,0.01,7.09e-05,2]
[399447779,1766363085962,4999.99,7.09e-05,2]
[399447780,1766363095014,3150.499354,0.00032877,120]
[399447782,1766363120950,-5000.0,7.018e-05,2]
[399447784,1766363127696,-300.0,7.089e-05,2]
[399447785,1766363127789,-1200.0,7.089e-05,2]
[399447786,1766363128604,-6216.22586612,7.09e-05,2]
[399447787,1766363128943,-10000.01,7.09e-05,2]
[399447788,1766363129273,-10000.01,7.09e-05,2]
[399447789,1766363129574,-10000.01,7.09e-05,2]
[399447790,1766363129891,-10000.01,7.09e-05,2]
[399447791,1766363130277,-10000.01,7.09e-05,2]
[399447794,1766363162388,300.0,7.089e-05,2]
[399447795,1766363174935,500.0,7.089e-05,2]
[399447796,1766363175066,574.43526603,7.089e-05,2]
[399447798,1766363177111,288.61768316,7.089e-05,2]
[399447799,1766363177204,500.0,7.089e-05,2]
[399447800,1766363177299,500.0,7.089e-05,2]
[399447801,1766363177390,488.35203654,7.089e-05,2]
[399447802,1766363177500,500.0,7.089e-05,2]
[399447803,1766363177612,500.0,7.089e-05,2]
[399447804,1766363177717,422.22087961,7.089e-05,2]
[399447805,1766363177846,500.0,7.089e-05,2]
[399447806,1766363177967,500.0,7.089e-05,2]
[399447807,1766363178062,500.0,7.089e-05,2]
[399447808,1766363179028,500.0,7.089e-05,2]
[399447809,1766363179123,576.76327642,7.089e-05,2]
[399447810,1766363179216,500.0,7.089e-05,2]
[399447811,1766363179305,500.0,7.089e-05,2]
[399447812,1766363179397,500.0,7.089e-05,2]
[399447813,1766363179503,500.0,7.089e-05,2]
[399447814,1766363179609,500.0,7.089e-05,2]
[399447815,1766363179699,349.62085824,7.089e-05,2]
[399447817,1766363195086,-150.37914176,7.089e-05,2]
[399447818,1766363195198,-500.0,7.089e-05,2]
[399447819,1766363195296,-500.0,7.089e-05,2]
[399447820,1766363195395,-500.0,7.089e-05,2]
[399447821,1766363195491,-500.0,7.089e-05,2]
[399447822,1766363195578,-500.0,7.089e-05,2]
[399447823,1766363195950,-500.0,7.089e-05,2]
[399447824,1766363196042,-500.0,7.089e-05,2]
[399447825,1766363196130,-500.0,7.089e-05,2]
[399447826,1766363196218,-500.0,7.089e-05,2]
[399447827,1766363196304,-266.62346819,7.089e-05,2]
[399447842,1766363225890,166.0047801,7.089e-05,2]
[399447844,1766363225978,474.70543997,7.089e-05,2]
[399447845,1766363231642,197.28870018,7.089e-05,2]
[399447859,1766363282324,300.0,7.089e-05,2]
[399447861,1766363288774,1200.0,7.089e-05,2]
[399447866,1766363320330,500.0,7.089e-05,2]
[399447867,1766363332913,181.23987,0.00028767,60]
[399447868,1766363337011,5000.0,7.09e-05,2]
[399447869,1766363343230,300.0,7.089e-05,2]
[399447870,1766363359988,2028.01585985,7.09e-05,2]
[399447871,1766363360075,2971.98414015,7.09e-05,2]
[399447874,1766363383396,5000.0,7.09e-05,2]
[399447875,1766363401641,300.0,7.089e-05,2]
[399447876,1766363402071,231.0,7.089e-05,2]
[399447877,1766363402206,300.0,7.089e-05,2]
[399447878,1766363405728,300.0,7.089e-05,2]
[399447879,1766363406063,-731.02107975,7.09e-05,2]
[399447880,1766363406169,-10000.01,7.09e-05,2]
[399447881,1766363407056,897.02585985,7.09e-05,2]
[399447882,1766363407424,4102.97414015,7.09e-05,2]
[399447883,1766363407541,-5000.01,7.09e-05,2]
[399447884,1766363407677,-10000.01,7.09e-05,2]
[399447885,1766363407889,-10000.01,7.09e-05,2]
[399447886,1766363407980,-10000.01,7.09e-05,2]
[399447887,1766363408086,1200.0,7.089e-05,2]
[399447888,1766363429015,-500.0,7.089e-05,2]
[399447889,1766363429095,-307.40260758,7.089e-05,2]
[399447890,1766363429378,644.04963424,7.089e-05,2]
[399447891,1766363430856,5000.0,7.018e-05,2]
[399447930,1766363432445,-11512.4261543,7.09e-05,2]
[399447937,1766363432497,-154124.983028,7.09e-05,2]
[399448114,1766363439008,-2422.08,7.09e-05,2]
[399448116,1766363439020,-182755.19298792,7.09e-05,2]
[399448118,1766363439029,-520.0,7.09e-05,2]
[399448120,1766363439039,-349.21458115,7.16e-05,2]
[399448122,1766363439049,-1715.93928683,7.161e-05,2]
[399448124,1766363439058,-300.0,7.231e-05,2]
[399448126,1766363439068,-300.0,7.231e-05,2]
[399448128,1766363439078,-300.0,7.231e-05,2]
[399448130,1766363439092,-300.0,7.231e-05,2]
[399448132,1766363439102,-300.0,7.231e-05,2]
[399448134,1766363439112,-300.0,7.231e-05,2]
[399448136,1766363439123,-300.0,7.231e-05,2]
[399448138,1766363439134,-300.0,7.231e-05,2]
[399448140,1766363439144,-300.0,7.231e-05,2]
[399448142,1766363439155,-300.0,7.231e-05,2]
[399448144,1766363439164,-300.0,7.231e-05,2]
[399448146,1766363439180,-300.0,7.231e-05,2]
[399448148,1766363439189,-300.0,7.231e-05,2]
[399448150,1766363439198,-300.0,7.231e-05,2]
[399448152,1766363439208,-300.0,7.231e-05,2]
[399448154,1766363439217,-600.0,7.231e-05,2]
[399448156,1766363439226,-150.23406155,7.438e-05,2]
[399448158,1766363439235,-501.06374212,7.516e-05,2]
[399448160,1766363439245,-410.18120568,7.546e-05,2]
[399448162,1766363439254,-425.8,7.78e-05,2]
[399448164,1766363439263,-300.0,7.798e-05,2]
[399448166,1766363439272,-420.0,7.798e-05,2]
[399448168,1766363439281,-1680.0,7.798e-05,2]
[399448170,1766363439291,-19401.1744431,7.819e-05,2]
[399448172,1766363439302,-468.77852078,7.895e-05,2]
[399448174,1766363439311,-285.47876988,7.9e-05,2]
[399448175,1766363439321,-157.40656785,7.908e-05,2]
[399448177,1766363439330,-206.418,7.911e-05,2]
[399448180,1766363439340,-2474.50892089,7.94e-05,2]
[399448181,1766363439350,-720.0,7.954e-05,2]
[399448183,1766363439359,-1715.9392868,8.052e-05,2]
[399448186,1766363439369,-1087.50142765,8.093e-05,2]
[399448187,1766363439378,-851.6,8.15e-05,2]
[399448189,1766363439387,-402.608909,8.219e-05,2]
[399448191,1766363439397,-949.43782146,8.272e-05,2]
[399448193,1766363439407,-166.08731922,8.277e-05,2]
[399448195,1766363439416,-4561.32045209,8.316e-05,2]
[399448197,1766363439426,-151.0,8.371e-05,2]
[399448199,1766363439435,-159.95154747,8.371e-05,2]
[399448201,1766363439444,-8118.72026611,8.371e-05,2]
[399448203,1766363439453,-574.12855637,8.371e-05,2]
[399448205,1766363439463,-250.0,8.371e-05,2]
[399448207,1766363439473,-500.0,8.371e-05,2]
[399448209,1766363439482,-250.0,8.371e-05,2]
[399448211,1766363439491,-500.0,8.371e-05,2]
[399448213,1766363439502,-250.0,8.371e-05,2]
[399448215,1766363439512,-500.0,8.371e-05,2]
[399448217,1766363439522,-250.0,8.371e-05,2]
[399448219,1766363439535,-500.0,8.371e-05,2]
[399448221,1766363439545,-250.0,8.371e-05,2]
[399448223,1766363439555,-500.0,8.371e-05,2]
[399448225,1766363439566,-250.0,8.371e-05,2]
[399448227,1766363439576,-250.0,8.371e-05,2]
[399448229,1766363439587,-500.0,8.371e-05,2]
[399448231,1766363439597,-250.0,8.371e-05,2]
[399448232,1766363439612,-500.0,8.371e-05,2]
[399448234,1766363439625,-250.0,8.371e-05,2]
[399448236,1766363439636,-500.0,8.371e-05,2]
[399448238,1766363439647,-250.0,8.371e-05,2]
[399448240,1766363439657,-500.0,8.371e-05,2]
[399448242,1766363439669,-250.0,8.371e-05,2]
[399448244,1766363439679,-500.0,8.371e-05,2]
[399448246,1766363439691,-453.93245012,8.371e-05,2]
[399448248,1766363439701,-251.92855197,8.371e-05,2]
[399448250,1766363439713,-2160.0,8.401e-05,2]
[399448252,1766363439723,-1362.0,8.401e-05,2]
[399448255,1766363439733,-633.0,8.401e-05,2]
[399448256,1766363439743,-415.0,8.421e-05,2]
[399448258,1766363439753,-500.0,8.437e-05,2]
[399448261,1766363439763,-4561.32045209,8.442e-05,2]
[399448262,1766363439772,-265.79978189,8.452e-05,2]
[399448264,1766363439783,-566.52274284,8.462e-05,2]
[399448265,1766363439792,-1277.4,8.521e-05,2]
[399448267,1766363439802,-219.58102314,8.536e-05,2]
[399448269,1766363439812,-4561.32045209,8.568e-05,2]
[399448271,1766363439821,-587.0,8.578e-05,2]
[399448273,1766363439830,-2351.0,8.578e-05,2]
[399448275,1766363439839,-450.12800716,8.635e-05,2]
[399448277,1766363439849,-165.84,8.693e-05,2]
[399448279,1766363439859,-4561.32045209,8.694e-05,2]
[399448281,1766363439868,-500.0,8.711e-05,2]
[399448283,1766363439881,-864.0,8.749e-05,2]
[399448285,1766363439891,-235.11183314,8.791e-05,2]
[399448287,1766363439901,-315.33638492,8.791e-05,2]
[399448289,1766363439910,-360.38443991,8.791e-05,2]
[399448292,1766363439920,-971.35556876,8.791e-05,2]
[399448294,1766363439929,-1726.85434445,8.791e-05,2]
[399448297,1766363439939,-4561.32045209,8.821e-05,2]
[399448299,1766363439948,-240.66038444,8.835e-05,2]
[399448301,1766363439957,-242.96100541,8.835e-05,2]
[399448303,1766363439966,-1703.2,8.891e-05,2]
[399448304,1766363439975,-1141.25838787,8.899e-05,2]
[399448306,1766363439985,-2028.90380066,8.899e-05,2]
[399448308,1766363439994,-433.40680524,8.899e-05,2]
[399448310,1766363440003,-541.00512006,8.899e-05,2]
[399448312,1766363440013,-961.78688011,8.899e-05,2]
[399448314,1766363440023,-1571.97539259,8.899e-05,2]
[399448316,1766363440032,-2794.62292016,8.899e-05,2]
[399448318,1766363440042,-373.49077057,8.899e-05,2]
[399448320,1766363440051,-493.3595915,8.899e-05,2]
[399448322,1766363440061,-877.08371822,8.899e-05,2]
[399448324,1766363440070,-251.44848491,8.899e-05,2]
[399448326,1766363440080,-287.36969704,8.899e-05,2]
[399448328,1766363440093,-1463.69412597,8.899e-05,2]
[399448330,1766363440102,-2602.12289061,8.899e-05,2]
[399448332,1766363440111,-332.77262223,8.899e-05,2]
[399448334,1766363440121,-390.50892887,8.899e-05,2]
[399448336,1766363440131,-595.37131296,8.919e-05,2]
[399448338,1766363440140,-1715.9392868,8.943e-05,2]
[399448340,1766363440149,-203.13420969,8.944e-05,2]
[399448342,1766363440159,-4561.32045209,8.947e-05,2]
[399448343,1766363440169,-165.84,8.967e-05,2]
[399448345,1766363440178,-500.0,8.985e-05,2]
[399448347,1766363440188,-229.591676,9.058e-05,2]
[399448349,1766363440198,-229.591676,9.058e-05,2]
[399448351,1766363440208,-229.591676,9.058e-05,2]
[399448353,1766363440218,-229.591676,9.058e-05,2]
[399448355,1766363440227,-4561.32045209,9.073e-05,2]
[399448357,1766363440237,-1362.06152673,9.122e-05,2]
[399448361,1766363440248,-412.07320576,9.16e-05,2]
[399448364,1766363440258,-1330.39346013,9.193e-05,2]
[399448366,1766363440267,-400.74845485,9.195e-05,2]
[399448368,1766363440276,-4561.32045209,9.199e-05,2]
[399448370,1766363440285,-2129.0,9.246e-05,2]
[399448372,1766363440294,-500.0,9.259e-05,2]
[399448374,1766363440304,-232.16926247,9.3e-05,7]
[399448376,1766363440314,-265.51672306,9.314e-05,7]
[399448378,1766363440325,-4561.32045209,9.326e-05,2]
[399448380,1766363440334,-823.0,9.435e-05,2]
[399448382,1766363440343,-1394.0,9.435e-05,2]
[399448384,1766363440352,-4565.88177254,9.452e-05,2]
[399448386,1766363440362,-617.40005154,9.467e-05,2]
[399448388,1766363440373,-250.0,9.477e-05,2]
[399448390,1766363440383,-475.59632565,9.52e-05,2]
[399448391,1766363440392,-500.0,9.533e-05,2]
[399448393,1766363440402,-2554.8,9.616e-05,2]
[399448395,1766363440411,-1000.0,9.624e-05,2]
[399448397,1766363440420,-277.06362403,9.805e-05,7]
[399448399,1766363440429,-500.0,9.807e-05,2]
[399448401,1766363440439,-1715.9392868,9.834e-05,2]
[399448403,1766363440447,-2980.59,9.986e-05,2]
[399448405,1766363440457,-158.13,0.0001,2]
[399448407,1766363440466,-535.44941351,0.0001,2]
[399448409,1766363440475,-558.30133356,0.0001,2]
[399448411,1766363440484,-561.8767388,0.0001,2]
[399448413,1766363440493,-640.24385345,0.00010015,2]
[399448415,1766363440502,-1094.22685213,0.00010071,2]
[399448417,1766363440511,-229.591676,0.00010081,2]
[399448419,1766363440521,-229.591676,0.00010081,2]
[399448421,1766363440530,-229.591676,0.00010081,2]
[399448423,1766363440539,-229.591676,0.00010081,2]
[399448425,1766363440548,-500.0,0.00010081,2]
[399448427,1766363440557,-158.13,0.000102,2]
[399448429,1766363440567,-1041.66666667,0.00010279,2]
[399448431,1766363440576,-1330.67213566,0.00010321,7]
[399448433,1766363440586,-678.66301001,0.00010321,7]
[399448435,1766363440595,-3406.39,0.00010355,2]
[399448437,1766363440605,-500.0,0.00010355,2]
[399448439,1766363440614,-1152.0,0.00010379,2]
[399448441,1766363440626,-2180.68760261,0.00010517,2]
[399448443,1766363440635,-557.74358997,0.00010549,2]
[399448445,1766363440644,-507.53662749,0.00010549,2]
[399448447,1766363440653,-151.0,0.00010549,2]
[399448449,1766363440662,-277.284222,0.00010549,2]
[399448451,1766363440672,-151.0,0.00010549,2]
[399448453,1766363440681,-151.0,0.00010549,2]
[399448455,1766363440690,-162.42793,0.00010549,2]
[399448457,1766363440699,-534.91449901,0.0001055,2]
[399448458,1766363440708,-663.93287602,0.00010563,2]
[399448459,1766363440717,-1000.0,0.00010586,2]
[399448460,1766363440998,-244.0,0.00010586,2]
[399448461,1766363441008,-1715.9392868,0.00010625,2]
[399448462,1766363441017,-500.0,0.00010629,2]
[399448463,1766363441027,-3832.19,0.00010725,2]
[399448464,1766363441036,-151.0,0.00010725,2]
[399448465,1766363441045,-151.0,0.00010725,2]
[399448466,1766363441054,-151.0,0.00010725,2]
[399448468,1766363441063,-1569.90938468,0.00010864,7]
[399448470,1766363441073,-223.54050446,0.00010864,7]
[399448472,1766363441084,-235570.6116703,0.0001089,2]
[399448474,1766363441094,-500.0,0.00010903,2]
[399448476,1766363441103,-153.097959,0.00010959,2]
[399448478,1766363441112,-999.0,0.00010959,2]
[399448480,1766363441122,-151.0,0.00011,2]
[399448482,1766363441131,-4257.99,0.00011095,2]
[399448484,1766363441140,-688.49839244,0.00011111,2]
[399448486,1766363441149,-474.93183036,0.0001116,2]
[399448488,1766363441159,-534.91449901,0.00011164,2]
[399448490,1766363441168,-557.74358997,0.00011164,2]
[399448492,1766363441177,-507.53662749,0.00011164,2]
[399448494,1766363441186,-500.0,0.00011177,2]
[399448497,1766363441195,-151.0,0.000113,2]
[399448498,1766363441204,-1362.0,0.00011401,2]
[399448501,1766363441213,-2160.0,0.00011401,2]
[399448503,1766363441223,-633.0,0.00011401,2]
[399448505,1766363441232,-1474.0,0.00011417,2]
[399448507,1766363441241,-415.0,0.00011421,2]
[399448508,1766363441250,-500.0,0.00011451,2]
[399448510,1766363441259,-151.0,0.000115,2]
[399448513,1766363441268,-151.0,0.000115,2]
[399448515,1766363441277,-534.91449901,0.00011533,2]
[399448516,1766363441286,-557.74358997,0.00011533,2]
[399448518,1766363441295,-507.53662749,0.00011533,2]
[399448521,1766363441304,-1000.0,0.00011645,2]
[399448523,1766363441312,-492.0,0.00011645,2]
[399448524,1766363441322,-534.91449901,0.00011656,2]
[399448527,1766363441331,-557.74358997,0.00011656,2]
[399448529,1766363441340,-507.53662749,0.00011656,2]
[399448530,1766363441349,-713.97283296,0.00011659,2]
[399448532,1766363441358,-500.0,0.00011725,2]
[399448535,1766363441367,-151.0,0.000118,2]
[399448536,1766363441377,-751.75084785,0.00011912,7]
[399448538,1766363441386,-2037.95174485,0.00011912,7]
[399448541,1766363441395,-500.0,0.00011999,2]
[399448542,1766363441404,-151.0,0.00012,2]
[399448544,1766363441414,-151.0,0.000121,2]
[399448546,1766363441423,-740.38982778,0.00012207,2]
[399448548,1766363441433,-500.0,0.00012273,2]
[399448551,1766363441443,-167.83563981,0.00012274,2]
[399448553,1766363441455,-2188.71548185,0.0001228,7]
[399448554,1766363441465,-216.4374773,0.0001228,7]
[399448557,1766363441475,-151.0,0.000123,2]
[399448558,1766363441484,-167.83563981,0.00012329,2]
[399448560,1766363441493,-310.28,0.00012329,2]
[399448563,1766363441512,-11621.46,0.00012329,2]
[399448566,1766363441523,-9943.12,0.00012329,2]
[399448568,1766363441534,-8285.93,0.00012329,2]
[399448570,1766363441544,-6904.94,0.00012329,2]
[399448572,1766363441554,-5754.12,0.00012329,2]
[399448574,1766363441564,-4795.1,0.00012329,2]
[399448576,1766363441574,-3995.92,0.00012329,2]
[399448578,1766363441586,-3329.93,0.00012329,2]
[399448580,1766363441595,-2774.94,0.00012329,2]
[399448582,1766363441605,-2312.45,0.00012329,2]
[399448584,1766363441614,-1927.04,0.00012329,2]
[399448586,1766363441626,-1605.87,0.00012329,2]
[399448588,1766363441636,-1338.22,0.00012329,2]
[399448590,1766363441645,-1115.19,0.00012329,2]
[399448592,1766363441655,-929.32,0.00012329,2]
[399448594,1766363441664,-774.44,0.00012329,2]
[399448596,1766363441674,-645.36,0.00012329,2]
[399448599,1766363441683,-537.8,0.00012329,2]
[399448601,1766363441693,-448.17,0.00012329,2]
[399448603,1766363441702,-373.47,0.00012329,2]
[399448605,1766363441711,-311.23,0.00012329,2]
[399448607,1766363441720,-259.36,0.00012329,2]
[399448609,1766363441729,-216.13,0.00012329,2]
[399448611,1766363441738,-180.11,0.00012329,2]
[399448613,1766363441748,-150.09,0.00012329,2]
[399448615,1766363441757,-750.48,0.00012329,2]
[399448617,1766363441767,-302.6251609,0.00012329,2]
[399448619,1766363441776,-598.5102788,0.00012329,2]
[399448621,1766363441786,-598.5102788,0.00012329,2]
[399448623,1766363441797,-188.1652792,0.00012329,2]
[399448625,1766363441806,-151.0,0.00012329,2]
[399448627,1766363441816,-151.0,0.00012329,2]
[399448629,1766363441825,-229.591676,0.00012329,2]
[399448631,1766363441834,-229.591676,0.00012329,2]
[399448633,1766363441844,-229.591676,0.00012329,2]
[399448635,1766363441853,-229.591676,0.00012329,2]
[399448637,1766363441863,-167.83563981,0.00012384,2]
[399448639,1766363441873,-167.83563981,0.00012466,2]
[399448641,1766363441883,-151.0,0.00012466,2]
[399448643,1766363441892,-151.0,0.00012466,2]
[399448645,1766363441902,-151.0,0.00012466,2]
[399448648,1766363441911,-151.0,0.000125,2]
[399448650,1766363441920,-167.83563981,0.00012521,2]
[399448652,1766363441929,-229.591676,0.00012531,2]
[399448654,1766363441938,-229.591676,0.00012531,2]
[399448656,1766363441948,-229.591676,0.00012531,2]
[399448658,1766363441957,-229.591676,0.00012531,2]
[399448660,1766363441966,-156.16338798,0.00012531,7]